Cogmind - Beta 12 @@@ ROGUE MODE // 2023.03.13 @ 02:42:31 Player: dhtilly Result: Destroyed by G-67 Veteran with Plasma Rifle Performance ------------- Evolutions (6) 3000 Regions Visited (13) 2600 Robots Destroyed (76) 380 Value Destroyed (3952) 3952 Prototype IDs (35) 700 Alien Tech Used (0) 0 Bonus (2924) 2924 TOTAL SCORE: 13556 Bonus ------- High Alert Combat Kills 199 Follower Combat Kills 542 Entered Garrisons 400 Used RIF Installer 1500 Aligned with FarCom 300 Friendly Fire -17 Cogmind --------- Core Integrity 0/1150 Matter 198/300 Energy 100/100 System Corruption 2% Temperature Cool (12) Movement Core (50) Location -4/Factory Parts ------- > --- POWER (1) -------- (None) > --- PROPULSION (6) --- (None) > --- UTILITY (10) ----- (None) > --- WEAPON (2) ------- (None) > --- INVENTORY (5) ---- Improved Transmission Jammer Relay Coupler [Sentry] (19) Arc Projector Wave Gun Remote Datajack Peak State ------------ > --- POWER ------------ Light Fission Core > --- PROPULSION ------- Improved Antigrav System VTOL Module Cesium-ion Thruster Cesium-ion Thruster Cesium-ion Thruster Nuclear Pulse Thruster > --- UTILITY ---------- Medium Storage Unit Improved Light Armor Plating Improved Hacking Suite Relay Coupler [NC] Relay Coupler [Swarmer] Relay Coupler [Sentry] Relay Coupler [Sentry] Relay Coupler [Demolisher] Relay Coupler [Specialist] > --- WEAPON ----------- Remote Datajack Scythe > --- INVENTORY -------- Cooled Airjet Cooled Airjet Gyrokinetic Inverter Relay Coupler [Swarmer] Relay Coupler [Sentry] Arc Projector Heavy Laser Wave Gun Heavy Missile Launcher [Rating: 70] Favorites ----------- Power Light Nuclear Core Engine Light Ion Engine Power Core Light Nuclear Core Propulsion Cesium-ion Thruster Wheel Wheel Hover Unit Improved Antigrav System Flight Unit Cesium-ion Thruster Utility Relay Coupler [Sentry] Device Improved Heat Sink Storage Medium Storage Unit Processor Improved Targeting Computer Hackware Relay Coupler [Sentry] Protection Improved Light Armor Plating Weapon Beam Rifle Energy Gun Beam Rifle Energy Cannon EM Pulse Cannon Ballistic Gun Assault Rifle Launcher Heavy Rocket Launcher Special Weapon Remote Datajack Slashing Weapon Scythe Build | -11 -10 -10 -10 -9 -8 -7 -7 -7 -6 -6 -6 -5 -4 ------- Run | Jun Mat Min Exi Min Mat Fac Gar Fac Fac Gar Fac Fac Fac Slots Evolved 12 | . . . . . 4 2 . . 2 . . 2 2 Power . | . . . . . . . . . . . . . . Propulsion 4 | . . . . . 2 . . . . . . 1 1 Utility 8 | . . . . . 2 2 . . 2 . . 1 1 Weapon . | . . . . . . . . . . . . . . Parts Attached 213 | 6 11 3 . . 14 42 47 11 5 45 13 4 12 Power 25 | 1 1 1 . . 1 6 6 . 1 6 1 . 1 Engine 10 | 1 1 1 . . 1 2 1 . . 2 . . 1 Core 15 | . . . . . . 4 5 . 1 4 1 . . Reactor . | . . . . . . . . . . . . . . Propulsion 45 | 2 2 2 . . 1 10 4 2 1 8 6 2 5 Treads . | . . . . . . . . . . . . . . Leg . | . . . . . . . . . . . . . . Wheel 8 | 2 2 2 . . . 2 . . . . . . . Hover 7 | . . . . . . . . . . . 1 1 5 Flight 30 | . . . . . 1 8 4 2 1 8 5 1 . Utility 38 | 1 3 . . . 2 10 7 . . 9 4 1 1 Device 4 | . . . . . . 4 . . . . . . . Storage 5 | 1 1 . . . . 2 . . . . 1 . . Processor 4 | . 2 . . . 2 . . . . . . . . Hackware 20 | . . . . . . 1 6 . . 9 3 . 1 Protection 5 | . . . . . . 3 1 . . . . 1 . Artifact . | . . . . . . . . . . . . . . Weapon 105 | 2 5 . . . 10 16 30 9 3 22 2 1 5 Energy Gun 27 | . 4 . . . 2 8 8 1 1 3 . . . Energy Cannon 4 | . . . . . . 3 1 . . . . . . Ballistic Gun 7 | 2 . . . . 4 1 . . . . . . . Ballistic Cannon . | . . . . . . . . . . . . . . Launcher 18 | . 1 . . . 4 4 4 1 . 3 . . 1 Special Weapon 13 | . . . . . . . 1 . 2 7 1 . 2 Impact Weapon . | . . . . . . . . . . . . . . Slashing Weapon 36 | . . . . . . . 16 7 . 9 1 1 2 Piercing Weapon . | . . . . . . . . . . . . . . Special Melee Weapon . | . . . . . . . . . . . . . . Unidentified Prototypes 8 | . . . . . . 5 . 2 . . 1 . . Parts Lost 51 | . 1 . . . 1 8 9 . 2 15 . . 15 Power 9 | . . . . . . 2 2 . . 3 . . 2 Propulsion 24 | . 1 . . . . 3 4 . 1 9 . . 6 Utility 10 | . . . . . . . 3 . . 2 . . 5 Weapon 8 | . . . . . 1 3 . . 1 1 . . 2 Highest Loss Streak 11 | . 1 . . . 1 5 4 . 2 4 . . 11 To Critical Strikes . | . . . . . . . . . . . . . . Average Slot Usage (%) 82 | . 97 100 100 100 69 70 80 84 79 76 90 94 81 Engine 4 | . 14 14 14 14 9 3 . . . . . . 3 Core 3 | . . . . . . 2 6 7 6 3 4 5 . Wheel 6 | . 26 28 28 28 . 1 . . . . . . . Flight 15 | . . . . . 9 7 29 30 26 24 24 29 17 Storage 8 | . 14 14 14 14 9 6 7 7 6 6 5 5 4 Processor 9 | . 12 14 14 14 25 19 8 . . . . . . Hackware 17 | . . . . . . 4 14 30 26 33 45 41 32 Protection 2 | . . . . . . 4 6 3 . . . 5 4 Energy Gun 5 | . 12 14 14 14 8 10 . . . . . . . Ballistic Gun 3 | . 15 14 14 14 7 1 . . . . . . . Slashing Weapon 2 | . . . . . . . . 4 6 4 5 2 4 Naked Turns 8 | . . . . . . . . . . . . . 8 Heaviest Build 50 | 12 48 50 50 50 50 50 21 18 20 21 20 23 25 Greatest Support 50 | 26 26 20 20 20 50 50 20 22 22 21 21 25 25 Greatest Overweight (x) 4 | . 4 2 2 2 . 2 1 . . 4 . . 1 Average Overweight (x) . | . 1 2 2 2 . . . . . . . . . Largest Inventory Capacity 20 | 8 20 20 20 20 20 20 10 10 10 10 10 10 10 Average Capacity 13 | 6 19 20 20 20 20 15 10 10 10 10 9 10 9 Most Carried 20 | 4 13 14 17 17 20 20 10 10 10 10 10 10 10 Average Carried 11 | 2 9 12 15 17 17 14 8 9 9 8 9 9 8 Final Capacity 20 | 8 20 20 20 20 20 10 10 10 10 10 10 10 5 Final Carried 20 | 4 11 13 17 17 20 7 10 10 10 10 10 10 5 Class Distribution -------------------- 46% | Mutant 36% | Bothacker-Sprinter 9% | Bothacker-Mutant 7% | Sprinter Dominant Class ---------------- Mutant | -10/Materials Mutant | -10/Mines Mutant | -10/Exiles Mutant | -9/Mines Mutant | -8/Materials Mutant | -7/Factory Bothacker-Sprinter | -7/Garrison Bothacker-Sprinter | -7/Factory Bothacker-Sprinter | -6/Factory Bothacker-Sprinter | -6/Garrison Bothacker-Sprinter | -6/Factory Bothacker-Sprinter | -5/Factory Bothacker-Mutant | -4/Factory Resources | -11 -10 -10 -10 -9 -8 -7 -7 -7 -6 -6 -6 -5 -4 ----------- Run | Jun Mat Min Exi Min Mat Fac Gar Fac Fac Gar Fac Fac Fac Matter Collected 2657 | 237 151 130 . . 78 630 529 102 110 540 . . 150 Remotely . | . . . . . . . . . . . . . . Salvage Created 2487 | . 191 201 . . 284 671 455 19 166 451 . . 49 Parts 134 | . 20 12 . . 15 32 19 4 10 14 . . 8 Haulers Intercepted 4 | . . . . . 2 2 . . . . . . . Recyclers Shooed 7 | . . . . . 1 2 . . . . . . 4 Parts Field Recycled . | . . . . . . . . . . . . . . Retrieved Matter . | . . . . . . . . . . . . . . Parts Self-Destructed . | . . . . . . . . . . . . . . Prevented . | . . . . . . . . . . . . . . Kills | -11 -10 -10 -10 -9 -8 -7 -7 -7 -6 -6 -6 -5 -4 ------- Run | Jun Mat Min Exi Min Mat Fac Gar Fac Fac Gar Fac Fac Fac Combat Hostiles Destroyed 70 | . 9 4 . . 5 16 17 2 4 12 . . 1 Melee 10 | . . . . . . . 1 . 4 5 . . . Guns 25 | . 5 4 . . 1 9 6 . . . . . . Cannons 2 | . . . . . . 2 . . . . . . . AOE 31 | . 4 . . . 4 4 10 2 . 6 . . 1 Classes Destroyed 10 | . 3 1 . . 3 2 . . . 1 . . . Worker 3 | . 1 . . . . . . . . . . . 2 Tunneler 2 | . . 2 . . . . . . . . . . . Hauler 4 | . . . . . 2 2 . . . . . . . Recycler 3 | . . . . . 1 2 . . . . . . . Swarmer 29 | . 6 . . . 3 4 11 2 2 1 . . . Cutter 4 | . . . . . . . . . . 3 . . 1 Grunt 21 | . 3 4 . . 1 2 2 . 2 7 . . . Sentry 5 | . . . . . 1 1 2 . . 1 . . . Programmer 5 | . . . . . . 3 2 . . . . . . Assembled 6 | . . . . . . 6 . . . . . . . Best Kill Streak 9 | . 4 4 . . 4 5 9 2 2 4 . . 3 Combat Bots Only 9 | . 4 2 . . 3 5 9 2 2 4 . . 1 Max Kills in Single Turn 4 | . 3 1 . . 3 4 4 1 1 3 . . 1 Gunslinging . | . . . . . . . . . . . . . . Exploded 4 | . 3 . . . 2 4 4 1 . 3 . . 1 Melee 1 | . . . . . . . 1 . 1 1 . . . Uniques/NPCs Destroyed . | . . . . . . . . . . . . . . Combat | -11 -10 -10 -10 -9 -8 -7 -7 -7 -6 -6 -6 -5 -4 -------- Run | Jun Mat Min Exi Min Mat Fac Gar Fac Fac Gar Fac Fac Fac Damage Taken 7045 | . 301 207 . . 421 1672 808 84 242 1321 73 . 1916 Core 2496 | . 98 21 . . 15 481 114 7 126 462 18 . 1154 Absorbed by Shields 11 | . . . . . . . . . . 11 . . . Regen/Repaired (Parts) 324 | . . . . . . . . . . . 324 . . Core Remaining (%) 65 | 100 . . . 52 97 . . 14 . . 28 100 . Volleys Fired 197 | . 17 16 . . 19 66 25 2 8 38 2 . 4 Largest 2 | . 2 2 . . 2 2 1 1 1 1 1 . 1 Hottest 126 | . 76 76 . . 76 126 80 39 80 69 5 . 39 Shots Fired 264 | . 31 32 . . 30 92 25 2 8 38 2 . 4 Gun 196 | . 28 32 . . 22 76 21 . 3 14 . . . Cannon 13 | . . . . . . 13 . . . . . . . Launcher 26 | . 3 . . . 8 3 4 2 . 5 . . 1 Special 29 | . . . . . . . . . 5 19 2 . 3 Kinetic 44 | . 14 16 . . 11 3 . . . . . . . Thermal 145 | . 14 16 . . 11 66 21 . 3 14 . . . Explosive 26 | . 3 . . . 8 3 4 2 . 5 . . 1 Electromagnetic 20 | . . . . . . 20 . . . . . . . Robot Hit Streak 18 | . 9 8 . . 10 18 14 . 13 10 1 . 5 Robot Miss Streak 3 | . 2 3 . . 2 2 3 . 1 3 1 . . Penetration Max . | . . . . . . . . . . . . . . Secondary Targets 3 | . 1 1 . . 1 . . . . . . . . Max Gunslinging Chain 1 | . 1 1 . . 1 . . . . . . . . Shots Hit Robots 224 | . 18 22 . . 18 69 29 . 15 43 1 . 9 Core Hits 145 | . 18 10 . . 16 40 30 2 7 16 . . 6 Critical Kills . | . . . . . . . . . . . . . . Critical Parts Destroyed . | . . . . . . . . . . . . . . Critical Strikes 15 | . 1 2 . . . 7 . . 2 3 . . . Burn 11 | . 1 2 . . . 7 . . . 1 . . . Sever 4 | . . . . . . . . . 2 2 . . . Melee Attacks 140 | . . . . . . . 26 15 11 42 7 6 33 Impact . | . . . . . . . . . . . . . . Slashing 140 | . . . . . . . 26 15 11 42 7 6 33 Piercing . | . . . . . . . . . . . . . . Sneak Attacks 5 | . . . . . . . . . . 1 . . 4 Combat Hostiles 1 | . . . . . . . . . . 1 . . . Follow-up Attacks . | . . . . . . . . . . . . . . Damage Inflicted 6917 | . 505 306 . . 817 1495 1424 189 320 1338 . . 523 Guns 2565 | . 228 306 . . 199 987 534 . 97 214 . . . Cannons 159 | . . . . . . 159 . . . . . . . Explosions 2872 | . 277 . . . 618 349 703 189 . 535 . . 201 Melee 1289 | . . . . . . . 187 . 223 589 . . 290 Ramming 32 | . . . . . . . . . . . . . 32 Kinetic 343 | . 109 101 . . 112 21 . . . . . . . Thermal 2133 | . 119 205 . . 87 877 534 . 97 214 . . . Explosive 2872 | . 277 . . . 618 349 703 189 . 535 . . 201 Electromagnetic 248 | . . . . . . 248 . . . . . . . Impact . | . . . . . . . . . . . . . . Slashing 1289 | . . . . . . . 187 . 223 589 . . 290 Piercing . | . . . . . . . . . . . . . . Highest Corruption 4 | . . . . . . 2 2 4 . . . . 2 Average Corruption 1 | . . . . . . 1 2 2 . . . . 2 Corruption Purged . | . . . . . . . . . . . . . . Corruption Blocked . | . . . . . . . . . . . . . . Effects 23 | . . . . . . 6 9 4 . . . . 4 Message Errors 3 | . . . . . . 1 1 1 . . . . . Matter Fused 6 | . . . . . . 2 2 1 . . . . 1 Heat Flow Errors 2 | . . . . . . . . 1 . . . . 1 Energy Discharges 4 | . . . . . . 2 1 1 . . . . . Data Loss (minor) 6 | . . . . . . 1 4 . . . . . 1 Data Loss (major) 1 | . . . . . . . . . . . . . 1 Alerts 1 | . . . . . . . 1 . . . . . . Overload Shots . | . . . . . . . . . . . . . . Overflow Damage 219 | . 4 . . . 50 10 37 . . 76 . . 42 Projectiles . | . . . . . . . . . . . . . . Explosions 159 | . 4 . . . 50 10 37 . . 58 . . . Melee 60 | . . . . . . . . . . 18 . . 42 Knockbacks 1 | . . . . . . . . . . . . . 1 Impact 1 | . . . . . . . . . . . . . 1 Kinetic . | . . . . . . . . . . . . . . Secondary . | . . . . . . . . . . . . . . Self-Inflicted Damage 313 | . . . . . 41 62 73 . . 60 . . 77 Shots 7 | . . . . . 2 1 2 . . 1 . . 1 Rammed 8 | . . . . . 1 . . . . . . . 7 Targets Rammed 8 | . . . . . 1 . . . . . . . 7 Kicked . | . . . . . . . . . . . . . . Crushed . | . . . . . . . . . . . . . . Highest Temperature 306 | . 118 159 . . 47 306 188 120 117 84 10 1 176 Average Temperature 63 | . 49 57 . . 17 82 76 76 62 27 4 1 96 Received Heat Transfer 1539 | . 114 114 . . 99 279 135 . 117 540 36 . 105 Effects 2 | . . . . . . 2 . . . . . . . Interference 2 | . . . . . . 2 . . . . . . . Siege Activations . | . . . . . . . . . . . . . . Robots Corrupted . | . . . . . . . . . . . . . . Combat Hostiles . | . . . . . . . . . . . . . . Parts Fried . | . . . . . . . . . . . . . . Impact Corruptions . | . . . . . . . . . . . . . . Robots Melted 2 | . . . . . . 1 . . . 1 . . . Combat Hostiles 2 | . . . . . . 1 . . . 1 . . . Parts Melted 22 | . 1 2 . . . 9 7 . . 3 . . . Heat Transferred 5580 | . 407 666 . . 222 2479 1100 . 225 481 . . . Parts Sabotaged . | . . . . . . . . . . . . . . Parts Stolen . | . . . . . . . . . . . . . . Parts Stripped . | . . . . . . . . . . . . . . Power Chain Reactions . | . . . . . . . . . . . . . . Missiles Intercepted . | . . . . . . . . . . . . . . Alert | -11 -10 -10 -10 -9 -8 -7 -7 -7 -6 -6 -6 -5 -4 ------- Run | Jun Mat Min Exi Min Mat Fac Gar Fac Fac Gar Fac Fac Fac Peak Influence 999 | . 225 212 . . 311 215 999 573 346 841 487 298 337 Initial 524 | . . 87 . . . 141 . 524 280 242 449 198 145 Average 292 | . 76 181 . . 98 75 592 528 330 573 414 222 191 Maximum Alert Level 3 | . 1 1 . . 1 1 3 2 1 3 2 1 1 Low Security (%) 45 | 100 84 56 . 100 88 93 13 . . . . 40 60 Level 1 22 | . 15 43 . . 11 6 8 . 100 26 28 59 39 Level 2 23 | . . . . . . . 43 100 . 39 71 . . Level 3 8 | . . . . . . . 34 . . 33 . . . Level 4 . | . . . . . . . . . . . . . . Level 5 . | . . . . . . . . . . . . . . High Security . | . . . . . . . . . . . . . . Max Security . | . . . . . . . . . . . . . . Squads Dispatched 24 | . 1 . . . . 9 . 4 1 . 3 1 5 Investigation 10 | . . . . . . 4 . 1 1 . 3 1 . Extermination 3 | . . . . . . 3 . . . . . . . Reinforcement 11 | . 1 . . . . 2 . 3 . . . . 5 Assault . | . . . . . . . . . . . . . . Garrison . | . . . . . . . . . . . . . . Intercept . | . . . . . . . . . . . . . . Searches Triggered . | . . . . . . . . . . . . . . Construction Impeded . | . . . . . . . . . . . . . . Haulers Reinforced 1 | . . . . . . 1 . . . . . . . Active Scanning Responses . | . . . . . . . . . . . . . . Cargo Convoy Interrupts . | . . . . . . . . . . . . . . Stealth | -11 -10 -10 -10 -9 -8 -7 -7 -7 -6 -6 -6 -5 -4 --------- Run | Jun Mat Min Exi Min Mat Fac Gar Fac Fac Gar Fac Fac Fac Distress Signals 9 | . 4 . . . 1 . . . . . . . 4 Communications Jammed . | . . . . . . . . . . . . . . Distress Signals . | . . . . . . . . . . . . . . Times Spotted 175 | . 11 6 . . 15 22 28 5 10 35 7 6 30 Peak Tracking Total 22 | . 7 3 . . 8 6 6 3 3 6 6 3 22 Tactical Retreats 24 | . . 1 . . 2 1 1 . . 13 1 1 4 Traps | -11 -10 -10 -10 -9 -8 -7 -7 -7 -6 -6 -6 -5 -4 ------- Run | Jun Mat Min Exi Min Mat Fac Gar Fac Fac Gar Fac Fac Fac Traps Triggered 13 | . 2 . . . 1 1 5 1 . 2 1 . . Indirectly . | . . . . . . . . . . . . . . Trap Hack Attempts . | . . . . . . . . . . . . . . Triggered . | . . . . . . . . . . . . . . Disarmed . | . . . . . . . . . . . . . . Reprogrammed . | . . . . . . . . . . . . . . Reused . | . . . . . . . . . . . . . . Traps Extracted . | . . . . . . . . . . . . . . Installed . | . . . . . . . . . . . . . . Triggered . | . . . . . . . . . . . . . . Machines | -11 -10 -10 -10 -9 -8 -7 -7 -7 -6 -6 -6 -5 -4 ---------- Run | Jun Mat Min Exi Min Mat Fac Gar Fac Fac Gar Fac Fac Fac Machines Disabled 14 | . . . . . 1 1 6 1 . 5 . . . Max in Single Turn 1 | . . . . . 1 1 1 1 . 1 . . . Garrison Access 2 | . . . . . . . . . . . . 1 1 Garrison Relay 8 | . . . . . . . 4 . . 4 . . . Machines Repaired . | . . . . . . . . . . . . . . Machines Sabotaged . | . . . . . . . . . . . . . . Overloaded Fab Kills . | . . . . . . . . . . . . . . Hacking | -11 -10 -10 -10 -9 -8 -7 -7 -7 -6 -6 -6 -5 -4 --------- Run | Jun Mat Min Exi Min Mat Fac Gar Fac Fac Gar Fac Fac Fac Machines Accessed 47 | . 8 . 1 . 3 14 2 2 2 . 9 5 1 Terminals 28 | . 8 . . . 1 10 2 1 . . 2 4 . Fabricators 8 | . . . . . . 3 . 1 1 . 3 . . Repair Stations 3 | . . . . . . . . . . . 3 . . Recycling Units . | . . . . . . . . . . . . . . Scanalyzers 2 | . . . . . 1 . . . . . 1 . . Garrison Access 5 | . . . . . 1 1 . . 1 . . 1 1 Total Hacks 132 | . 26 . 1 . 6 47 4 7 4 . 23 13 1 Successful 81 | . 13 . 1 . 4 29 3 2 4 . 16 8 1 Failed 51 | . 13 . . . 2 18 1 5 . . 7 5 . Catastrophic 3 | . . . . . . 2 . . . . . 1 . Database Lockouts . | . . . . . . . . . . . . . . Manual 71 | . 21 . 1 . 4 29 1 . . . 5 10 . Terminals 91 | . 26 . . . 2 39 4 3 . . 5 12 . Fabricators 19 | . . . . . . 6 . 4 3 . 6 . . Repair Stations 9 | . . . . . . . . . . . 9 . . Recycling Units . | . . . . . . . . . . . . . . Scanalyzers 5 | . . . . . 2 . . . . . 3 . . Garrison Access 7 | . . . . . 2 2 . . 1 . . 1 1 Terminal Hacks 25 | . 5 . 1 . . 12 2 1 . . 1 3 . Record 2 | . . . . . . 2 . . . . . . . Prototype ID Bank 1 | . . . . . . 1 . . . . . . . Open Door 1 | . . . . . . . 1 . . . . . . Open DSF 1 | . . . . . . . . 1 . . . . . Level Access Points 2 | . . . . . . 1 . . . . 1 . . Branch Access Points 1 | . 1 . . . . . . . . . . . . Emergency Access Points 2 | . . . . . . 1 1 . . . . . . Machine Index 1 | . 1 . . . . . . . . . . . . Terminal Index 3 | . 1 . . . . 1 . . . . . 1 . Scanalyzer Index 1 | . 1 . . . . . . . . . . . . Alert Level 3 | . 1 . . . . 2 . . . . . . . Unreport Threat 3 | . . . . . . 3 . . . . . . . Hauler Manifests 2 | . . . . . . 1 . . . . . 1 . Zone Layout 1 | . . . . . . . . . . . . 1 . EX-Prototype ID Bank 1 | . . . 1 . . . . . . . . . . Fabricator Hacks 13 | . . . . . . 4 . 1 3 . 5 . . Load Schematic 7 | . . . . . . 2 . 1 1 . 3 . . Build 6 | . . . . . . 2 . . 2 . 2 . . Repair Station Hacks 6 | . . . . . . . . . . . 6 . . Scan Component 3 | . . . . . . . . . . . 3 . . Repair 3 | . . . . . . . . . . . 3 . . Recycling Unit Hacks . | . . . . . . . . . . . . . . Scanalyzer 4 | . . . . . 2 . . . . . 2 . . Insert Component 2 | . . . . . 1 . . . . . 1 . . Analyze 2 | . . . . . 1 . . . . . 1 . . Garrison Access Hacks 4 | . . . . . . 1 . . 1 . . 1 1 Unlock Access 2 | . . . . . . 1 . . 1 . . . . Seal Access 2 | . . . . . . . . . . . . 1 1 Unauthorized Hacks 29 | . 8 . . . 2 12 1 . . . 2 4 . Terminals 27 | . 8 . . . 1 11 1 . . . 2 4 . Track 1 | . . . . . . 1 . . . . . . . Botnet 26 | . 8 . . . 1 10 1 . . . 2 4 . Fabricators 1 | . . . . . . 1 . . . . . . . Download 1 | . . . . . . 1 . . . . . . . Repair Stations . | . . . . . . . . . . . . . . Recycling Units . | . . . . . . . . . . . . . . Scanalyzers . | . . . . . . . . . . . . . . Garrison Access 1 | . . . . . 1 . . . . . . . . Reprogram 1 | . . . . . 1 . . . . . . . . Data Cores Recovered . | . . . . . . . . . . . . . . Used . | . . . . . . . . . . . . . . Hacking Detections 42 | . 8 . . . 3 13 2 2 2 . 8 4 . Full Trace Events 8 | . . . . . . 2 . 1 1 . 3 1 . Feedback Events . | . . . . . . . . . . . . . . Feedback Blocked . | . . . . . . . . . . . . . . Robot Schematics Acquired . | . . . . . . . . . . . . . . Robots Built 1 | . . . . . . . . . 1 . . . . Authchips . | . . . . . . . . . . . . . . Time 116 | . . . . . . . . . 116 . . . . Total Robot Build Rating 3 | . . . . . . . . . 3 . . . . Part Schematics Acquired 2 | . . . . . 1 . . . . . 1 . . Parts Built 9 | . . . . . . 4 . . 2 . 3 . . Authchips . | . . . . . . . . . . . . . . Time 339 | . . . . . . 109 . . 73 . 157 . . Total Part Build Rating 28 | . . . . . . 12 . . 6 . 10 . . Parts Repaired 3 | . . . . . . . . . . . 3 . . Time 54 | . . . . . . . . . . . 54 . . Parts Recycled . | . . . . . . . . . . . . . . Recycled Matter . | . . . . . . . . . . . . . . Retrieved Matter . | . . . . . . . . . . . . . . Retrieved Components . | . . . . . . . . . . . . . . Parts Scanalyzed 2 | . . . . . 1 . . . . . 1 . . Part Schematics Acquired 2 | . . . . . 1 . . . . . 1 . . Parts Damaged . | . . . . . . . . . . . . . . Bothacking | -11 -10 -10 -10 -9 -8 -7 -7 -7 -6 -6 -6 -5 -4 ------------ Run | Jun Mat Min Exi Min Mat Fac Gar Fac Fac Gar Fac Fac Fac Used RIF Installer 3 | . . . . . . . 2 . . 1 . . . Command Fork 1 | . . . . . . . 1 . . . . . . Program Shield 1 | . . . . . . . . . . 1 . . . Robots Hacked 21 | . . . . . . . . . 5 12 1 . 3 Non-combat 3 | . . . . . . . . . . . 1 . 2 Combat 18 | . . . . . . . . . 5 12 . . 1 Robot Hacks Applied 22 | . . . . . . . . . 5 13 1 . 3 drop_inventory 2 | . . . . . . . . . . . 1 . 1 scatter_targeting 1 | . . . . . . . . . . 1 . . . overload_power 1 | . . . . . . . . . . 1 . . . amplify_resonance 1 | . . . . . . . . . . . . . 1 disable_weapons 1 | . . . . . . . . . . 1 . . . go_dormant 1 | . . . . . . . . . 1 . . . . streamctrl_high 5 | . . . . . . . . . 2 3 . . . formatsys_high 10 | . . . . . . . . . 2 7 . . 1 Relay Couplers Released 32 | . . . . . . . 16 . . 16 . . . Machine Destruction 32 | . . . . . . . 16 . . 16 . . . Attached 18 | . . . . . . . 6 . . 9 2 . 1 Fabnet Peak Effective % . | . . . . . . . . . . . . . . Robots Rewired . | . . . . . . . . . . . . . . Allies Hacked . | . . . . . . . . . . . . . . Hacks Repelled . | . . . . . . . . . . . . . . Allies | -11 -10 -10 -10 -9 -8 -7 -7 -7 -6 -6 -6 -5 -4 -------- Run | Jun Mat Min Exi Min Mat Fac Gar Fac Fac Gar Fac Fac Fac Total Allies 20 | . . . . . . . 4 . 5 10 . . 1 Largest Group 3 | . . . . . . . 2 2 3 2 . . 1 Highest-Rated Group 160 | . . . . . . . 160 160 55 61 . . 49 Highest-Rated Ally 80 | . . . . . . . 80 80 29 41 . . 49 Total Orders 2 | . . . . . . . . . 2 . . . . STAY 1 | . . . . . . . . . 1 . . . . FOLLOW 1 | . . . . . . . . . 1 . . . . Ally Attacks 80 | . . . . . . . 47 1 7 25 . . . Total Damage 1871 | . . . . . . . 1230 75 76 490 . . . Kills 16 | . . . . . . . 14 . . 2 . . . Allies Corrupted . | . . . . . . . . . . . . . . Allies Melted . | . . . . . . . . . . . . . . Intel | -11 -10 -10 -10 -9 -8 -7 -7 -7 -6 -6 -6 -5 -4 ------- Run | Jun Mat Min Exi Min Mat Fac Gar Fac Fac Gar Fac Fac Fac Robot Analysis Total . | . . . . . . . . . . . . . . Derelict Logs Recovered 1 | . . 1 . . . . . . . . . . . Drone Launches . | . . . . . . . . . . . . . . Drone Recoveries . | . . . . . . . . . . . . . . Exploration | -11 -10 -10 -10 -9 -8 -7 -7 -7 -6 -6 -6 -5 -4 ------------- Run | Jun Mat Min Exi Min Mat Fac Gar Fac Fac Gar Fac Fac Fac Turns Passed 5992 | 48 659 262 331 24 332 1157 735 341 320 648 576 74 485 Spaces Moved 7810 | 38 511 170 301 22 397 1584 1157 767 353 977 617 205 711 Core 76 | 1 . . . . . . . . . 3 . . 72 Treads . | . . . . . . . . . . . . . . Legs . | . . . . . . . . . . . . . . Wheels 1132 | 37 511 170 301 22 . 91 . . . . . . . Hover 335 | . . . . . . . . . . . . . 335 Flight 6267 | . . . . . 397 1493 1157 767 353 974 617 205 304 Fastest Speed 24 | 50 90 110 110 110 50 26 26 26 27 26 26 24 24 Average Speed 45 | 93 108 110 110 110 50 50 26 26 27 27 26 24 45 Slowest Speed 250 | 100 140 110 110 110 50 171 26 27 30 250 29 24 110 Overloaded Moves . | . . . . . . . . . . . . . . Propulsion Burnouts . | . . . . . . . . . . . . . . Robots Hopped 35 | . . . . . 8 8 1 7 . 5 5 . 1 Cave-ins Triggered . | . . . . . . . . . . . . . . Exploration Rate (%) 35 | 3 78 33 70 12 48 44 89 19 7 61 15 6 15 Regions Visited 13 Branch Regions 3 Pre-discovered Areas . | . . . . . . . . . . . . . . Known Exits Taken 5 | . 1 . . . . 1 . 1 1 . 1 . . Unknown Exits Taken 6 | 1 . 1 1 1 1 . . . . . . 1 . Scrap Searched . | . . . . . . . . . . . . . . Spaces Dug 77 | . . . . . 13 . 9 15 . . 7 6 27 Terrain Destroyed 348 | . 22 . . . 97 37 45 24 . 66 7 6 44 Melee 55 | . . . . . . . . 15 . . 7 6 27 Projectile . | . . . . . . . . . . . . . . AOE 293 | . 22 . . . 97 37 45 9 . 66 . . 17 Terrain Rammed . | . . . . . . . . . . . . . . Walls Destroyed . | . . . . . . . . . . . . . . Machines Disabled . | . . . . . . . . . . . . . . Actions | -11 -10 -10 -10 -9 -8 -7 -7 -7 -6 -6 -6 -5 -4 --------- Run | Jun Mat Min Exi Min Mat Fac Gar Fac Fac Gar Fac Fac Fac Total 9769 | 47 584 213 301 21 487 1850 1536 876 553 1248 1012 219 822 Wait 1071 | . 22 18 . . 50 108 141 78 173 90 342 3 46 Move 7729 | 37 510 169 300 21 381 1568 1153 753 352 966 606 204 709 Hop 31 | . . . . . 7 7 1 6 . 4 5 . 1 Pick Up 93 | 4 14 4 1 . 9 16 13 1 3 12 10 2 4 Fast Attach 53 | 6 5 . . . 1 13 7 2 . 10 5 . 4 Attach 99 | . 1 . . . 4 18 34 7 3 21 3 2 6 Detach 69 | . 1 . . . 3 10 32 6 . 12 4 . 1 Swap 61 | . 5 3 . . 9 11 6 2 2 14 5 2 2 Drop 74 | . 9 3 . . 3 33 8 4 1 3 5 . 5 Fire 197 | . 17 16 . . 19 66 25 2 8 38 2 . 4 Melee 140 | . . . . . . . 26 15 11 42 7 6 33 Ram 8 | . . . . . 1 . . . . . . . 7 Kick . | . . . . . . . . . . . . . . Crush . | . . . . . . . . . . . . . . Escape Stasis 142 | . . . . . . . 90 . . 34 18 . . Rewire 2 | . . . . . . . . . . 2 . . . Trap . | . . . . . . . . . . . . . . Miscellaneous . | . . . . . . . . . . . . . . Route ------- -11/Junkyard -10/Materials (discovered 3 exits: [*Mat] / *Min x2) -10/Mines (discovered 2 exits: [*Mat] / *Exi) -10/Exiles -9/Mines -8/Materials (discovered 2 exits: *Fac x2) -7/Factory (discovered 7 exits: Fac x4 / [*Low x2] / Gar) -7/Garrison (discovered 3 exits: *Fac x3) -7/Factory -6/Factory -6/Garrison (discovered 2 exits: *Fac x2) -6/Factory (discovered 5 exits: *Fac x4 / [*Low]) -5/Factory -4/Factory History --------- Turn | Location | Event 12 | -11/Junkyard | Discovered new exit (range 14) 49 | -11/Junkyard | Entered Materials 255 | -10/Materials | Discovered new exit (range 6) 310 | -10/Materials | Build established: Mutant 433 | -10/Materials | Discovered new exit (range 15) 573 | -10/Materials | Identified exit to Mines 708 | -10/Materials | Entered Mines 711 | -10/Mines | Learned Materials non-interactive machine intel 797 | -10/Mines | Found a hidden stash of uninstalled traps 868 | -10/Mines | Discovered new exit (range 4) 917 | -10/Mines | Assembled infested the area 922 | -10/Mines | Assisted by a Guerilla fighting off Assembled 965 | -10/Mines | Deemed a non-threat by the Exiles lab entrance 966 | -10/Mines | Discovered new exit (range 5) 970 | -10/Mines | Entered Exiles 996 | -10/Exiles | Met 8R-AWN 1022 | -10/Exiles | Met EX-HEX 1058 | -10/Exiles | Met EX-BIN 1074 | -10/Exiles | Aligned with FarCom system 1075 | -10/Exiles | Given EX-Vault access code 1101 | -10/Exiles | Opened EX-Vault 1111 | -10/Exiles | Found Flying Fortress v7 1135 | -10/Exiles | Warned to stay clear of 0b10 Research branches 1166 | -10/Exiles | Met EX-DEC 1288 | -10/Exiles | Discovered new exit (range 12) 1301 | -10/Exiles | Left Exiles lab with Flying Fortress v7 1301 | -10/Exiles | Entered Mines 1312 | -9/Mines | Discovered new exit (range 10) 1325 | -9/Mines | Entered Materials 1325 | -8/Materials | Evolved 4 slots: Propulsion x2, Utility x2 1326 | -8/Materials | Loaded intel: 39 non-interactive machine locations 1592 | -8/Materials | Discovered new exit (range 5) 1655 | -8/Materials | Discovered new exit (range 4) 1657 | -8/Materials | Entered Factory 1657 | -7/Factory | Evolved 2 slots: Utility x2 1880 | -7/Factory | Fabricated Cesium-ion Thruster (x2) 2046 | -7/Factory | Discovered new exit (range 9) 2164 | -7/Factory | Fabricated Cesium-ion Thruster? 2383 | -7/Factory | Discovered new exit (range 5) 2591 | -7/Factory | Assembled infested ambush trap array 2641 | -7/Factory | Lost 5 parts (1p1n3w) 2721 | -7/Factory | Core integrity fell below 50% 2772 | -7/Factory | Identified exit to Factory 2813 | -7/Factory | Identified exit to Garrison 2814 | -7/Factory | Entered Garrison 2826 | -7/Garrison | Triggered checkpoint 2839 | -7/Garrison | Rescued a captive Derelict 2859 | -7/Garrison | Rescued a captive Derelict 2973 | -7/Garrison | Lost 4 parts (1p2n1u) 2996 | -7/Garrison | Destroyed 9 combat bots 3012 | -7/Garrison | Discovered new exit (range 12) 3023 | -7/Garrison | Found embedded Infiltrators 3094 | -7/Garrison | Triggered checkpoint 3116 | -7/Garrison | Triggered checkpoint 3126 | -7/Garrison | Discovered new exit (range 19) 3143 | -7/Garrison | Core integrity fell below 20% 3161 | -7/Garrison | Installed Relay Interface Framework 3196 | -7/Garrison | Triggered checkpoint 3211 | -7/Garrison | Garrison Relay disabled 3251 | -7/Garrison | Expanded RIF knowledge: Command Fork 3292 | -7/Garrison | Triggered checkpoint 3314 | -7/Garrison | Garrison Relay disabled 3338 | -7/Garrison | Discovered new exit (range 14) 3384 | -7/Garrison | Triggered checkpoint 3406 | -7/Garrison | Garrison Relay disabled 3442 | -7/Garrison | Triggered checkpoint 3481 | -7/Garrison | Garrison Relay disabled 3506 | -7/Garrison | Build established: Bothacker-Sprinter 3549 | -7/Garrison | Entered Factory 3549 | -7/Factory | Accompanied by 2 allies 3566 | -7/Factory | Identified exit to DSF 3887 | -7/Factory | Discovered exit to Factory (range 4) 3890 | -7/Factory | Entered another Factory area 3890 | -6/Factory | Evolved 2 slots: Utility x2 4056 | -6/Factory | Fabricated O-24 Administrator? 4130 | -6/Factory | Fabricated Cesium-ion Thruster? 4209 | -6/Factory | Identified exit to Garrison 4210 | -6/Factory | Entered Garrison 4210 | -6/Garrison | Accompanied by 1 ally 4220 | -6/Garrison | Triggered checkpoint 4229 | -6/Garrison | Expanded RIF knowledge: Program Shield 4287 | -6/Garrison | Garrison Relay disabled 4326 | -6/Garrison | Triggered checkpoint 4396 | -6/Garrison | Triggered checkpoint 4459 | -6/Garrison | Lost 3 parts (2n1w) 4502 | -6/Garrison | Triggered checkpoint 4503 | -6/Garrison | Core integrity fell below 50% 4513 | -6/Garrison | Discovered new exit (range 8) 4536 | -6/Garrison | Lost 3 parts (1p2n) 4538 | -6/Garrison | Triggered checkpoint 4560 | -6/Garrison | Garrison Relay disabled 4593 | -6/Garrison | Garrison Relay disabled 4772 | -6/Garrison | Triggered checkpoint 4812 | -6/Garrison | Discovered new exit (range 10) 4815 | -6/Garrison | Lost 4 parts (3n1u) 4828 | -6/Garrison | Garrison Relay disabled 4858 | -6/Garrison | Entered Factory 4938 | -6/Factory | Fabricated Cesium-ion Thruster? 5009 | -6/Factory | Discovered new exit (range 8) 5044 | -6/Factory | Repaired Cesium-ion Thruster 5068 | -6/Factory | Repaired Med. Storage Unit 5121 | -6/Factory | Repaired Hvy. Missile Launcher 5237 | -6/Factory | Fabricated Remote Datajack? 5401 | -6/Factory | Identified exit to Factory 5434 | -6/Factory | Entered another Factory area 5434 | -5/Factory | Evolved 2 slots: Propulsion x1, Utility x1 5497 | -5/Factory | Discovered new exit (range 6) 5508 | -5/Factory | Entered another Factory area 5508 | -4/Factory | Evolved 2 slots: Propulsion x1, Utility x1 5924 | -4/Factory | Build established: Bothacker-Mutant 5970 | -4/Factory | Core integrity fell below 50% 5982 | -4/Factory | Lost 11 parts (1p4n4u2w) 5990 | -4/Factory | Core integrity fell below 20% 5993 | -4/Factory | Destroyed by G-67 Veteran with Plasma Rifle Last Messages --------------- 05986_ Slammed into S-27 Virus. 05986_ U-05 Engineer lays Concrete. 05987_ U-05 Engineer builds a Wall. 05988_ U-05 Engineer lays Concrete. 05988_ R-10 Processor collects VTOL Module. 05988_ U-05 Engineer lays Concrete. 05988_ K-01 Serf collects debris. 05988_ Critical hit (Burn: +37). 05989_ Penetrated by Slug. 05989_ U-05 Engineer lays Concrete. 05990_ Slammed into R-10 Processor. 05990_ U-05 Engineer lays Concrete. 05991_ U-05 Engineer builds a Wall. 05991_ Slammed into G-67 Veteran. 05991_ Destabilizing: Core damaged (-11). 05991_ U-05 Engineer lays Concrete. 05991_ Penetrated by Slug. 05991_ Slug penetrates Wall. 05992_ Slammed into G-67 Veteran. 05993_ Slammed into U-05 Engineer. Map ----- +----------------------------------------------------+ | """" """" ??????????????????????????????? | | """" """" ??????????????????????????????? | | """" """" #?????????????????????????????? | | !! """" """" ##################????????????? | | !! """" """" # #????????????? | | # #????????????? | | """" """" # """" """" #????????????? | | !! """" """" # """" """" #????????????? | | !! """" """" # """" """" #????????????? | | """" """" #"" """" """" #????????????? | | """" """" #"Y " " """" #????????????? | | """" """" g#"" " " """" #????????????? | | + = = #????????????? | | w####/####/########????????????? | | ## # # ! +??????????????????? | | ## # # ????????????????? | | ###+######+#### ### # ! #? w??????????????? | | # ## #?# # +?? ????????????? | | ] # """ "# #?### " #???? ??????????? | | ! # """ ## #??## # S"" #????? ????????? | | # """ "# ##??# # "" #?????? "???????? | | =! # ## ##??# # #???????? ????????? | | !! # !## ##??#k#######????????? ????????? | | !! [ # "" ## H#???#u#######o ????????? | | # """ ## #???# gguR #???????????????? | | # "R ## h#???###@###### #???????????????? | | ######## """ ## h#######g###????????????????????? | | ???????# "" ## ##### chc #????????????????????? | | ???????# ## % g s #????????????????????? | | ???????####### h h #????????????????????? | | ############?## s #????????????????????? | | #??## # s #????????????????????? | | """ """ #???##########+#####??????????????????? | | """ """ #?????????# #??????????????????? | | """ """ #?????????# = #??????????????????? | | ##????????# "" #??h???????????????? | | ###################### "" #??????????????????? | | ??????????# !## """ #??????????????????? | | ########### ## """ #??????????????????? | | + ! ## """ #??h???????????????? | | #####"##### ## #??????????????????? | | #???# """ """ ## #??????????????????? | | #???# """ """ #? #??????????????????? | | #???# """ """ #? "T" #??????????????????? | | ! #???# #? #??????????????????? | | #########+###############??????????????????? | | # ????????????????? | | # ????????????????? | | # ????????????????? | | + ????????????????? | +----------------------------------------------------+ Best States ------------- Heat Dissipation 48 Energy Generation 18 Energy Capacity 300 Matter Stores 300 Matter Capacity 300 Sight Range 20 Terrain Scan Density 10 Armor Coverage 150 Evasion (%) 65 Targeting Accuracy 12 Offensive Hacking 12 Relay Coupler Types 6 Relay Coupler Value 161 Item Schematics ----------------- Cesium-ion Thruster | -8/Materials | Scanalyzed Remote Datajack | -6/Factory | Scanalyzed Robot Schematics ------------------ None Fabricated ------------ Cesium-ion Thruster | x2 | -7/Factory Cesium-ion Thruster | x2 | -7/Factory O-24 Administrator | x1 | -6/Factory | Preloaded Cesium-ion Thruster | x2 | -6/Factory Cesium-ion Thruster | x2 | -6/Factory Remote Datajack | x1 | -6/Factory Alien Tech Used ----------------- None Achievements -------------- Brute Force Challenges ------------ None Game ------ Seed DefenseChipMatter Manual? 0 Play Time 02:18:56 Cumulative 95.3 hours Start 2023.03.12 @ 23:24:51 End 2023.03.13 @ 02:42:31 Sessions 1 Manual Loads 0 Difficulty Rogue Special Mode None Game No. 58 Rogue 58 Adventurer 0 Explorer 0 Win Type - Total 0 Types 0/0/0/0/0/0/0/0/0 Lore% 40 Gallery% 50 Achievement% 42 Wizard Run 0 Options --------- ASCII 0 Keyboard 1 Movement Vi Keybinds 0 Fullscreen 1 Font 12/Smallcaps Map View 83x54 Tactical HUD 1 Map Filters NONE Filters NONE Steam 1 RUN: 181ff44c-425f-4ab7-8eb1-f029eff466e7